bitfinex-derivatives/quotes_ETHF0:USTF0_20260221
["timestamp","ask_amount","ask_price","bid_price","bid_amount"]
[1771651858864,7.46926125,1964.8,1964.3,8.11299841]
[1771651859059,7.46926125,1964.8,1964.4,6.08982386]
[1771651859254,7.46926125,1964.8,1964.3,8.11299841]
[1771651860361,6.24716413,1964.4,1964.0,6.23082593]
[1771651860564,6.24716413,1964.4,1964.1,6.09097366]
[1771651860764,6.24716413,1964.4,1964.0,10.03582593]
[1771651860964,6.24716413,1964.4,1964.1,6.08986117]
[1771651861165,6.24716413,1964.4,1964.0,10.03582593]
[1771651864774,6.24716413,1964.4,1963.8,10.03582593]
[1771651864974,6.24716413,1964.4,1963.9,6.23082593]
[1771651866970,6.24716413,1964.4,1964.0,6.23082593]
[1771651870776,6.24716413,1964.4,1964.0,10.03582593]
[1771651872374,6.24716413,1964.4,1964.0,3.805]
[1771651872880,6.24716413,1964.4,1964.0,9.98223522]
[1771651876680,6.24716413,1964.4,1964.0,6.17723522]
[1771651877483,6.24716413,1964.4,1963.8,6.17723522]
[1771651882685,6.24716413,1964.4,1963.9,6.17723522]
[1771651883583,6.32254258,1964.6,1963.9,6.17723522]
[1771651888492,6.32254258,1964.6,1964.0,6.17723522]
[1771651890292,6.32254258,1964.5,1964.0,6.17723522]
[1771651896096,6.32254258,1964.5,1963.8,6.17723522]
[1771651900504,6.32254258,1964.5,1963.9,5.55218663]
[1771651905412,6.57716258,1964.5,1963.7,9.35718663]
[1771651905610,6.57716258,1964.5,1963.7,3.805]
[1771651905611,5.52882679,1964.2,1963.7,3.805]
[1771651905809,5.52882679,1964.2,1963.7,9.35718663]
[1771651906300,5.52882679,1964.2,1963.7,5.55218663]
[1771651909707,5.52882679,1964.2,1963.6,9.35718663]
[1771651912113,5.52882679,1964.2,1963.6,5.55218663]
[1771651916821,5.52882679,1964.2,1963.5,0.0038765]
[1771651917016,5.52882679,1964.2,1963.5,5.55606313]
[1771651932131,4.97897526,1964.1,1963.5,5.55606313]
[1771651933035,4.97897526,1964.1,1963.6,5.18738373]
[1771651934424,4.97897526,1964.1,1963.5,3.8088765]
[1771651935237,4.97897526,1963.9,1963.5,8.99626023]
[1771651938934,4.97897526,1963.9,1963.6,3.805]
[1771651944032,6.40944275,1964.1,1963.7,4.56463373]
[1771651944234,4.97897526,1964.1,1963.7,4.56463373]
[1771651944436,11.38841801,1964.2,1963.7,4.56463373]
[1771651944837,4.97897526,1964.1,1963.7,4.56463373]
[1771651949636,11.64305801,1964.3,1963.7,4.56463373]
[1771651950140,4.97897526,1964.2,1963.7,4.56463373]
[1771651951438,6.66408275,1964.3,1963.7,4.56463373]
[1771651951637,11.64305801,1964.3,1963.7,4.56463373]
[1771651952039,4.97897526,1964.2,1963.7,4.56463373]
[1771651954946,4.97897526,1964.1,1963.7,4.56463373]
[1771651955246,4.97897526,1964.1,1963.7,5.18738373]
[1771651959750,4.97897526,1964.1,1963.7,8.99238373]
[1771651962552,4.97897526,1964.1,1963.8,4.9384636]
[1771651963050,4.97897526,1964.1,1963.7,3.805]
[1771651963251,4.63488574,1964.2,1963.8,4.9384636]
[1771651965751,4.63488574,1964.2,1963.8,8.7434636]
[1771651971656,4.63488574,1964.2,1963.9,3.805]
[1771651975263,4.63488574,1964.2,1963.9,3.29326]
[1771651976062,4.63488574,1964.2,1963.9,8.2317236]
[1771651977564,4.63488574,1964.2,1963.9,4.9384636]
[1771651980864,6.66408275,1964.3,1963.9,4.9384636]
[1771651981064,11.29896849,1964.3,1963.9,4.9384636]
[1771651981965,6.75005509,1964.2,1963.9,4.9384636]
[1771651982166,4.63488574,1964.1,1963.7,4.9384636]
[1771651983365,4.63488574,1964.1,1963.7,8.2317236]
[1771651983772,4.63488574,1964.1,1963.8,4.9384636]
[1771651989478,4.63488574,1964.1,1963.8,8.2317236]
[1771651991980,4.63488574,1964.1,1963.8,7.77824412]
[1771651994282,4.46121107,1964.2,1963.9,4.48498412]
[1771651995284,4.46121107,1964.2,1963.8,4.48498412]
[1771652006887,4.71588107,1964.1,1963.7,7.08958389]
[1771652007185,4.71588107,1964.1,1963.8,3.29326]
[1771652007982,4.71588107,1964.1,1963.8,2.22628]
[1771652008187,4.71588107,1964.1,1963.5,3.77957635]
[1771652013091,4.71588107,1964.1,1963.6,7.69568971]
[1771652013387,4.71588107,1964.1,1963.6,3.805]
[1771652013891,4.71588107,1964.1,1963.6,7.66621056]
[1771652015490,4.71588107,1964.1,1963.7,3.80077072]
[1771652028702,4.71588107,1964.1,1963.7,3.26826072]
[1771652028998,4.71588107,1964.1,1963.7,1.62363072]
[1771652029199,4.71588107,1964.1,1963.7,1.11139072]
[1771652032705,4.71588107,1964.1,1963.6,4.58521221]
[1771652035101,4.71588107,1964.1,1963.7,0.72369284]
[1771652036605,4.71588107,1964.1,1963.6,4.47178766]
[1771652040104,4.71588107,1964.1,1963.7,0.58412449]
[1771652040906,4.02088775,1964.4,1963.7,0.58412449]
[1771652042708,4.02088775,1964.4,1963.9,0.5249965]
[1771652044203,4.02088775,1964.5,1963.9,0.5249965]
[1771652045307,0.25461,1964.6,1963.9,0.5249965]
[1771652045508,0.25461,1964.6,1964.1,0.45097502]
[1771652045509,4.27549775,1964.6,1964.1,0.45097502]
[1771652048609,4.27549775,1964.6,1964.1,4.25597502]
[1771652049807,4.27549775,1964.6,1964.2,0.34629194]
[1771652050504,4.27549775,1964.6,1964.1,3.805]
[1771652050710,4.27549775,1964.6,1964.1,4.12453351]
[1771652054709,4.27549775,1964.6,1964.1,0.31953351]
[1771652069221,4.27549775,1964.6,1963.9,3.805]
[1771652070927,4.02088775,1964.6,1964.0,3.805]
[1771652075330,4.02088775,1964.6,1964.1,3.805]
[1771652076530,3.83495916,1964.8,1964.1,3.805]
[1771652078531,3.83495916,1964.8,1964.1,5.91853965]
[1771652081334,3.83495916,1964.8,1964.2,3.805]
[1771652082936,3.83495916,1964.8,1964.3,3.805]
[1771652083233,3.83495916,1964.8,1964.4,3.805]
[1771652085437,3.73321177,1965.0,1964.3,2.11353965]
[1771652085640,3.73321177,1965.0,1964.3,4.25454883]
[1771652085830,3.73321177,1965.1,1964.4,3.805]
[1771652086036,3.73321177,1965.1,1964.5,2.11353965]
[1771652086237,3.73321177,1965.1,1964.3,6.36808848]
[1771652091049,3.73321177,1965.1,1964.3,2.11353965]
[1771652096150,3.73321177,1965.1,1964.4,3.805]
[1771652099150,2.11353965,1965.0,1964.4,3.805]
[1771652099355,3.64171707,1964.9,1964.4,3.805]
[1771652102052,3.64171707,1964.9,1964.3,6.45]
[1771652102053,3.64171707,1964.9,1964.5,3.805]
[1771652103756,2.11353965,1964.8,1964.5,3.805]
[1771652103951,3.59675367,1964.7,1964.5,3.805]
[1771652104256,3.59675367,1964.7,1964.2,4.95715577]
[1771652104456,3.59675367,1964.7,1964.2,2.222]
[1771652104856,3.59675367,1964.7,1964.2,4.97023216]
[1771652107060,3.59675367,1964.7,1964.2,2.222]
[1771652108155,3.59675367,1964.7,1964.3,2.222]
[1771652109964,3.59675367,1964.7,1964.1,2.30421441]
[1771652110961,3.59675367,1964.7,1964.1,5.49894018]
[1771652120367,3.06080973,1965.1,1964.3,3.19472577]
[1771652135578,3.06080973,1964.9,1964.1,5.49894018]
[1771652135972,3.06080973,1964.7,1964.1,5.49894018]
[1771652136477,3.06080973,1964.7,1964.1,3.19472577]
[1771652137682,3.01231776,1964.6,1963.8,2.80173432]
[1771652137883,3.01231776,1964.5,1963.8,2.80173432]
[1771652148594,3.01231776,1964.5,1963.7,2.80173432]
[1771652158202,3.01231776,1964.4,1963.7,2.80173432]
[1771652163204,3.01231776,1964.3,1963.7,2.80173432]
[1771652165213,3.01231776,1964.2,1963.7,2.80173432]
[1771652166511,3.01231776,1964.0,1963.5,2.80561082]
[1771652167312,3.01231776,1964.0,1963.5,0.0038765]
[1771652168014,3.01231776,1964.0,1963.5,2.6988654]
[1771652176819,2.11522561,1963.9,1963.5,2.6988654]
[1771652177116,2.69451174,1963.8,1963.5,2.6988654]
[1771652177321,2.70038364,1963.8,1963.5,2.6988654]
[1771652184317,2.69451174,1963.6,1963.3,2.72794872]
[1771652184515,2.69451174,1963.6,1963.1,0.90604176]
[1771652185320,2.69451174,1963.6,1963.1,0.91063704]
[1771652192022,2.69451174,1963.6,1963.1,0.00459528]
[1771652192224,2.69451174,1963.6,1963.0,0.97814024]
[1771652193129,2.69451174,1963.6,1963.0,0.9831323]
[1771652198129,4.65889574,1963.3,1962.8,0.8601557]
[1771652198334,2.54367013,1963.2,1962.8,0.8601557]
[1771652199130,2.54367013,1963.2,1962.8,0.86466171]
[1771652207433,2.54367013,1963.2,1962.8,0.00450601]
[1771652208533,2.54367013,1963.2,1962.7,0.67099954]
[1771652209236,2.54367013,1963.2,1962.6,0.67604767]
[1771652209536,2.54367013,1963.2,1962.5,2.29576339]
[1771652209937,2.54367013,1963.2,1962.5,2.95524969]
[1771652212137,2.54367013,1963.2,1962.6,0.62016503]
[1771652212341,2.54367013,1963.3,1962.8,0.59983195]
[1771652221639,2.54367013,1963.4,1963.0,0.44618715]
[1771652224954,2.54367013,1963.7,1963.0,0.44618715]
[1771652227452,2.54367013,1963.7,1963.2,0.28473093]
[1771652228557,2.54367013,1963.7,1963.1,2.38954381]
[1771652229452,2.54367013,1963.7,1963.2,0.25887107]
[1771652231158,2.30674247,1963.8,1963.4,0.20547583]
[1771652242568,2.30674247,1963.8,1963.0,4.24377158]
[1771652248270,2.30674247,1963.8,1963.1,4.24377158]
[1771652256279,2.30674247,1963.8,1963.2,4.24377158]
[1771652256575,2.30674247,1963.8,1963.1,4.24377158]
[1771652257176,2.30674247,1963.8,1963.2,4.24377158]
[1771652261180,2.30674247,1963.8,1963.3,4.24377158]
[1771652305427,2.30674247,1963.8,1963.2,4.24377158]
[1771652316233,8.01992727,1964.3,1963.2,4.24377158]
[1771652316234,6.399,1965.0,1963.2,4.24377158]
[1771652316439,1.96997835,1963.8,1963.3,3.805]
[1771652316641,1.96997835,1963.8,1963.4,3.805]
[1771652316938,1.96997835,1963.8,1963.5,10.78503066]
[1771652317138,1.96997835,1963.8,1963.6,6.54125908]
[1771652317340,0.04005017,1963.8,1963.7,6.54125908]
[1771652317542,0.04005017,1963.8,1963.5,8.04877158]
[1771652317931,0.04005017,1963.8,1963.5,3.805]
[1771652324544,0.04005017,1963.8,1963.5,5.46602449]
[1771652326146,0.04005017,1963.8,1963.5,3.805]
[1771652326645,0.04005017,1963.8,1963.5,5.46602449]
[1771652327446,0.04005017,1963.8,1963.5,1.66102449]
[1771652329449,0.04005017,1963.8,1963.6,6.09543509]
[1771652329647,0.04005017,1963.8,1963.5,1.66102449]
[1771652329849,0.04005017,1963.8,1963.6,6.09543547]
[1771652330050,0.04005017,1963.8,1963.5,1.66102449]
[1771652330249,0.04005017,1963.8,1963.6,6.06859196]
[1771652330550,1.68131707,1964.2,1963.5,1.66102449]
[1771652330750,1.68131707,1964.2,1963.7,1.66102449]
[1771652331752,1.68707528,1964.2,1963.7,1.66102449]
[1771652343362,0.00575821,1964.2,1963.7,1.66102449]
[1771652343660,1.68707528,1964.2,1963.7,1.66102449]
[1771652349065,0.00575821,1964.2,1963.7,1.66102449]
[1771652349665,4.9071299,1964.2,1963.7,1.66102449]
[1771652352769,4.23226036,1963.7,1963.1,4.62989003]
[1771652352965,4.23226036,1963.5,1963.0,4.62989003]
[1771652353168,4.23226036,1963.4,1963.0,4.62989003]
[1771652354369,4.23226036,1963.4,1963.0,1.00481566]
[1771652354666,4.90137169,1963.3,1962.6,4.62989003]
[1771652365971,4.90137169,1963.3,1962.6,5.06589003]
[1771652372276,6.08986596,1963.2,1962.6,5.06589003]
[1771652372477,6.08986596,1963.1,1962.6,5.06589003]
[1771652372772,4.90137169,1963.3,1962.6,5.06589003]
[1771652372977,6.08986308,1963.2,1962.6,5.06589003]
[1771652373175,6.08986308,1963.1,1962.6,5.06589003]
[1771652373477,4.90137169,1963.3,1962.6,5.06589003]
[1771652373679,6.09026987,1963.2,1962.6,5.06589003]
[1771652373878,4.90137169,1963.3,1962.6,5.06589003]
[1771652374078,4.90137169,1963.4,1962.7,4.62989003]
[1771652374377,4.90137169,1963.6,1962.7,4.62989003]
[1771652374773,4.90137169,1963.9,1962.7,4.62989003]
[1771652375079,4.90137169,1963.9,1962.9,4.62989003]
[1771652376280,4.90137169,1963.8,1962.9,4.62989003]
[1771652377983,4.90137169,1963.8,1963.1,4.86322454]
[1771652378182,4.90137169,1963.8,1963.1,5.29922454]
[1771652381271,5.19855454,1963.7,1963.1,5.29922454]
[1771652383881,5.19855454,1963.7,1963.1,4.86322454]
[1771652384179,9.45964807,1963.7,1963.1,4.86322454]
[1771652386085,5.19855454,1963.7,1963.1,4.86322454]
[1771652386280,6.06275009,1963.6,1963.1,4.86322454]
[1771652386480,6.06275009,1963.5,1963.1,4.86322454]
[1771652386679,5.19855454,1963.7,1963.1,4.86322454]
[1771652386880,11.19743561,1963.6,1963.1,4.86322454]
[1771652387083,5.99888107,1963.5,1963.1,4.86322454]
[1771652387283,4.26109353,1963.8,1963.1,4.86322454]
[1771652387485,5.19855454,1963.7,1963.1,4.86322454]
[1771652387784,5.9985651,1963.6,1963.1,4.86322454]
[1771652387980,5.9985651,1963.5,1963.1,4.86322454]
[1771652388182,5.19855454,1963.7,1963.1,4.86322454]
[1771652388481,5.99808984,1963.6,1963.1,4.86322454]
[1771652388680,5.99808984,1963.5,1963.1,4.86322454]
[1771652388884,5.19855454,1963.7,1963.1,4.86322454]
[1771652389076,5.99808999,1963.6,1963.1,4.86322454]
[1771652389276,5.99808999,1963.5,1963.1,4.86322454]
[1771652389475,5.19855454,1963.7,1963.1,4.86322454]
[1771652389675,5.99787396,1963.6,1963.1,4.86322454]
[1771652389880,5.99787396,1963.5,1963.1,4.86322454]
[1771652390080,5.19855454,1963.7,1963.1,4.86322454]
[1771652390279,5.99787395,1963.6,1963.1,4.86322454]
[1771652390476,5.99787395,1963.5,1963.1,4.86322454]
[1771652390675,5.19855454,1963.7,1963.1,4.86322454]
[1771652390879,5.99774658,1963.6,1963.1,4.86322454]
[1771652391085,5.99774658,1963.5,1963.1,4.86322454]
[1771652391286,5.19855454,1963.7,1963.1,4.86322454]
[1771652391488,5.997689,1963.6,1963.1,4.86322454]
[1771652391786,5.997689,1963.5,1963.1,4.86322454]
[1771652391985,5.19855454,1963.7,1963.1,4.86322454]
[1771652392186,11.19624375,1963.6,1963.1,4.86322454]
[1771652392386,5.99768921,1963.5,1963.1,4.86322454]
[1771652392788,5.19855454,1963.7,1963.1,4.86322454]
[1771652393086,5.99770945,1963.6,1963.1,4.86322454]
[1771652393291,5.99770945,1963.5,1963.1,4.86322454]
[1771652393588,5.19855454,1963.7,1963.1,4.86322454]
[1771652393789,5.99780565,1963.6,1963.1,4.86322454]
[1771652393986,5.99780565,1963.5,1963.1,4.86322454]
[1771652394186,5.19855454,1963.7,1963.1,4.86322454]
[1771652394390,5.99798068,1963.6,1963.1,4.86322454]
[1771652394688,5.99798068,1963.5,1963.1,4.86322454]
[1771652394891,5.19855454,1963.7,1963.1,4.86322454]
[1771652395086,11.19655609,1963.6,1963.1,4.86322454]
[1771652395285,5.99800155,1963.5,1963.1,4.86322454]
[1771652397891,9.45964807,1963.7,1963.1,4.86322454]
[1771652398096,5.99899228,1963.6,1963.1,4.86322454]
[1771652398392,5.99899228,1963.5,1963.1,4.86322454]
[1771652398597,5.19855454,1963.7,1963.1,4.86322454]
[1771652398789,5.9994288,1963.6,1963.1,4.86322454]
[1771652399087,5.9994288,1963.5,1963.1,4.86322454]
[1771652399285,5.19855454,1963.7,1963.1,4.86322454]
[1771652399591,5.99997654,1963.6,1963.1,4.86322454]
[1771652399792,5.99997654,1963.5,1963.1,4.86322454]
[1771652399987,5.19855454,1963.7,1963.1,4.86322454]
[1771652400187,11.13465141,1963.6,1963.1,4.86322454]
[1771652400392,5.93609687,1963.5,1963.1,4.86322454]
[1771652401794,5.93609687,1963.5,1963.1,5.29922454]
[1771652401992,5.19855454,1963.7,1963.1,5.29922454]
[1771652402295,5.19855454,1963.6,1963.1,5.29922454]
[1771652402495,5.19855454,1963.8,1963.3,4.86322454]
[1771652402692,5.19855454,1964.0,1963.3,4.86322454]
[1771652408601,4.73313002,1963.9,1963.3,4.86322454]
[1771652414303,4.73313002,1963.9,1963.1,5.04706708]
[1771652416204,4.73313002,1963.8,1963.1,5.04706708]
[1771652419603,4.73313002,1963.8,1963.3,4.61106708]
[1771652420905,4.73313002,1963.7,1963.3,4.61106708]
[1771652425112,6.8484939,1963.9,1963.3,4.61106708]
[1771652425811,6.8484939,1963.9,1963.3,5.04706708]
[1771652431514,6.8484939,1963.9,1963.3,4.61106708]
[1771652432016,4.73313002,1963.9,1963.3,4.61106708]
[1771652452138,4.73313002,1963.9,1963.3,5.04706708]
[1771652458043,4.73313002,1963.9,1963.3,4.61106708]
[1771652463946,4.73313002,1963.9,1963.3,5.04706708]
[1771652464447,4.73313002,1963.9,1963.4,4.09666747]
[1771652469849,4.73313002,1963.9,1963.4,4.53266747]
[1771652472450,4.02031765,1964.0,1963.4,4.53266747]
[1771652472654,4.02031765,1964.1,1963.6,3.76679056]
[1771652472950,4.02031765,1964.1,1963.6,4.20279056]
[1771652476051,4.02031765,1964.1,1963.8,3.76679056]
[1771652477449,4.02607586,1964.2,1963.8,3.76679056]
[1771652481658,0.00575821,1964.2,1963.8,3.76679056]
[1771652490767,0.00575821,1964.2,1963.8,4.20279056]
[1771652492171,4.02031765,1964.4,1963.8,4.20279056]
[1771652493170,4.02646344,1964.4,1963.8,4.20279056]
[1771652496572,4.02646344,1964.4,1964.0,3.76679056]
[1771652496773,4.02646344,1964.4,1964.0,3.77042553]
[1771652503980,0.00614579,1964.4,1964.0,3.77042553]
[1771652504882,3.69211889,1964.4,1964.0,3.77042553]
[1771652521091,3.69211889,1964.4,1964.0,0.00363497]
[1771652521298,3.69211889,1964.4,1963.2,10.65959748]
[1771652521299,3.69211889,1964.4,1963.6,3.75450948]
[1771652521497,3.69211889,1964.4,1963.6,4.19050948]
[1771652522294,3.69211889,1964.4,1963.6,4.19626784]
[1771652526198,3.69211889,1964.4,1963.7,0.436]
[1771652526398,3.69211889,1964.4,1963.7,4.19050948]
[1771652542811,3.2235021,1964.3,1963.7,4.19050948]
[1771652545610,3.2235021,1964.3,1963.7,0.436]
[1771652545910,3.2235021,1963.9,1963.5,3.15259961]
[1771652546813,3.2235021,1963.9,1963.5,3.15901195]
[1771652552814,4.27265805,1964.2,1963.6,2.11398976]
[1771652553018,3.2235021,1964.2,1963.7,3.15259961]
[1771652563831,5.2524359,1964.4,1963.7,3.15259961]
[1771652564032,3.13230035,1964.3,1963.7,3.15259961]
[1771652583844,3.13230035,1964.1,1963.5,3.07460196]
[1771652684719,4.27865655,1964.2,1963.5,3.07460196]
[1771652684922,6.54348777,1964.2,1963.5,3.07460196]
[1771652685426,2.26483122,1964.1,1963.5,3.07460196]
[1771652693928,2.26483122,1964.2,1963.5,3.07460196]
[1771652704144,2.26483122,1964.2,1963.6,2.11412382]
[1771652704343,2.26483122,1964.2,1963.7,2.22209707]
[1771652707740,2.08140807,1964.3,1963.7,2.22209707]
[1771652707940,4.28480234,1964.4,1963.9,2.12578967]
[1771652708146,6.36621041,1964.4,1963.9,2.12578967]
[1771652709148,2.08755386,1964.4,1963.9,2.12578967]
[1771652712743,2.08755386,1964.4,1963.7,1.97264683]
[1771652712944,1.99656295,1964.2,1963.6,4.26401098]
[1771652713749,1.99656295,1964.2,1963.7,1.97264683]
[1771652729255,1.99656295,1964.3,1963.7,1.97264683]
[1771652732656,1.99656295,1964.2,1963.7,1.97264683]
[1771652734557,1.99656295,1964.2,1963.6,4.26401098]
[1771652734754,1.99656295,1964.1,1963.6,4.26401098]
[1771652735757,4.27865655,1964.2,1963.7,1.97264683]
[1771652736654,6.2752195,1964.3,1963.7,1.97264683]
[1771652736957,6.28136529,1964.4,1963.7,1.97264683]
[1771652739361,1.86162681,1964.3,1963.7,1.97264683]
[1771652741664,6.14642915,1964.4,1963.7,1.97264683]
[1771652743462,1.86162681,1964.3,1963.7,1.97264683]
[1771652746269,1.8677726,1964.4,1963.7,1.97264683]
[1771652760179,0.00614579,1964.4,1963.7,1.97264683]
[1771652760382,0.00614579,1964.4,1963.8,1.99624841]
[1771652760679,1.8677726,1964.4,1963.8,1.99624841]
[1771652801719,1.62998297,1964.3,1963.7,1.61664415]
[1771652803214,1.62998297,1964.3,1963.6,2.29136415]
[1771652803215,1.62193447,1964.1,1963.6,2.29136415]
[1771652803916,1.62193447,1964.1,1963.6,3.9080083]
[1771652804215,1.62193447,1964.1,1963.7,1.61664415]
[1771652822631,1.62193447,1964.1,1963.6,3.9080083]
[1771652822836,1.62193447,1964.1,1963.5,1.62305649]
[1771652826433,1.43765396,1963.9,1963.4,1.61664415]
[1771652827438,1.43765396,1963.9,1963.4,1.6229788]
[1771652828641,1.43765396,1963.9,1963.4,0.00633465]
[1771652828839,1.41348115,1963.7,1963.2,1.50230034]
[1771652829838,1.41348115,1963.7,1963.2,1.50873748]
[1771652843859,1.30526692,1963.4,1963.0,1.50230034]
[1771652844159,1.46460993,1963.2,1962.7,1.50230034]
[1771652844858,1.46460993,1963.2,1962.7,1.50790451]
[1771652875490,4.26601837,1963.3,1962.7,1.50790451]
[1771652875694,4.26601837,1963.4,1962.7,1.50790451]
[1771652875891,1.55948349,1963.5,1962.7,1.50790451]
[1771652875892,5.82550186,1963.5,1962.7,1.50790451]
[1771652877192,1.55948349,1963.4,1962.7,1.50790451]
[1771652885698,4.26601837,1963.5,1962.7,1.50790451]
[1771652885699,1.55948349,1963.2,1962.7,1.50790451]
[1771652886798,1.55948349,1963.2,1962.5,1.41442008]
[1771652887099,1.55948349,1963.1,1962.5,1.41442008]
[1771652887694,1.55948349,1963.1,1962.5,1.41985466]
[1771652893599,1.55948349,1963.1,1962.5,0.00543458]
[1771652893805,1.43557387,1963.0,1962.2,1.35937321]
[1771652894701,1.44170156,1963.0,1962.2,1.36365712]
[1771652896803,1.43557387,1962.9,1962.2,1.36365712]
[1771652909020,3.55349803,1962.5,1962.2,1.36365712]
[1771652909218,3.55349803,1962.5,1962.2,1.35789895]
[1771652912823,1.43557387,1962.4,1962.1,1.35937321]
[1771652913025,1.43557387,1962.4,1962.1,1.21233454]
[1771652913823,1.43557387,1962.4,1962.1,1.21733975]
[1771652919729,1.43557387,1962.4,1962.1,0.00500521]
[1771652920326,1.43557387,1962.4,1962.1,1.28591699]
[1771652927835,1.33730102,1962.6,1962.1,1.28591699]
[1771652939943,1.33730102,1962.4,1962.1,1.28591699]
[1771652943144,2.11792416,1962.5,1962.1,1.28591699]
[1771652943349,3.45522518,1962.5,1962.1,1.28591699]
[1771652943549,1.33730102,1962.4,1962.1,1.28591699]
[1771652949556,3.38006681,1962.5,1962.1,1.28591699]
[1771652950356,1.26214265,1962.4,1962.1,1.28591699]
[1771652951155,1.26214265,1962.6,1962.1,1.28591699]
[1771652951753,1.26214265,1962.4,1962.1,0.00500521]
[1771652952455,1.26214265,1962.4,1962.1,1.23210247]
[1771652956058,1.26214265,1962.4,1962.1,0.00500521]
[1771652956959,1.26214265,1962.2,1961.7,1.22709726]
[1771652957957,1.26214265,1962.2,1961.7,1.23106253]
[1771652966367,2.11792416,1962.3,1961.7,1.23106253]
[1771652966564,3.38006681,1962.3,1961.7,1.23106253]
[1771652967970,1.26214265,1962.2,1961.7,1.23106253]
[1771653012802,1.26214265,1962.2,1961.7,0.00396527]
[1771653014300,1.26214265,1962.2,1961.7,1.12995208]
[1771653019405,1.26214265,1962.2,1961.7,0.00396527]
[1771653020110,1.26214265,1962.2,1961.7,1.12995208]
[1771653024713,1.26214265,1962.2,1961.7,0.00396527]
[1771653030712,1.13271755,1962.5,1961.7,1.12995208]
[1771653032217,3.25080386,1962.4,1961.7,1.12995208]
[1771653033321,1.13271755,1962.3,1961.7,1.12995208]
[1771653035225,1.13271755,1962.1,1961.7,1.12995208]
[1771653053735,1.08611376,1962.3,1961.7,1.12995208]
[1771653053932,1.08611376,1962.5,1961.7,1.12995208]
[1771653062646,2.74967845,1962.4,1961.7,1.12995208]
[1771653069153,1.0662308,1962.3,1961.7,1.12995208]
[1771653124997,4.27653684,1962.4,1961.7,1.12995208]
[1771653125403,5.37416471,1962.5,1961.8,1.08969609]
[1771653125800,1.09762787,1962.4,1961.8,1.08969609]
[1771653126197,5.37416471,1962.6,1962.0,1.08969609]
[1771653126393,6.41480526,1962.8,1962.1,1.08969609]
[1771653126394,5.37416471,1962.8,1962.1,1.08969609]
[1771653126704,5.37416471,1962.9,1962.2,1.08969609]
[1771653127199,1.09762787,1962.9,1962.2,1.08969609]
[1771653129105,1.13918058,1963.0,1962.4,1.13700223]
[1771653131095,1.13918058,1963.0,1962.1,1.13700223]
[1771653156026,1.13305289,1962.8,1962.1,1.13700223]
[1771653156222,1.13305289,1962.8,1962.2,1.13700223]
[1771653175635,1.08602216,1963.0,1962.3,1.06795685]
[1771653176636,1.08602216,1963.0,1962.4,1.06795685]
[1771653179444,1.08602216,1963.0,1962.5,1.06795685]
[1771653179844,0.00612769,1963.0,1962.5,1.06795685]
[1771653180447,1.07989447,1963.3,1962.7,1.06795685]
[1771653180747,1.07989447,1963.3,1962.8,1.06795685]
[1771653181247,1.07989447,1963.5,1962.9,1.06795685]
[1771653181437,1.08563881,1963.5,1962.9,1.06795685]
[1771653181746,1.07989447,1963.6,1963.1,1.06795685]
[1771653182841,1.07989447,1963.6,1963.1,1.07410872]
[1771653183141,1.0844578,1963.6,1963.1,1.07410872]
[1771653187350,1.07989447,1963.2,1962.9,1.06795685]
[1771653188349,1.07989447,1963.2,1962.9,1.07249879]
[1771653196253,1.07989447,1963.2,1962.9,0.00454194]
[1771653196854,1.07989447,1963.2,1962.9,1.11431864]
[1771653205456,1.07989447,1963.2,1962.9,0.00454194]
[1771653207560,1.07989447,1963.2,1962.9,1.11431864]
[1771653209963,1.07989447,1963.2,1962.9,0.00454194]
[1771653214664,1.07989447,1963.2,1962.9,1.11431864]
[1771653214864,1.07989447,1963.2,1962.9,0.00454194]
[1771653215357,1.6624271,1963.5,1963.0,1.1097767]
[1771653215358,1.12304981,1963.4,1963.0,1.1097767]
[1771653216563,1.12304981,1963.4,1962.9,5.3750138]
[1771653221763,1.12304981,1963.4,1962.9,0.00454194]
[1771653222072,1.11179143,1963.3,1962.9,0.00454194]
[1771653231476,1.11179143,1963.3,1962.9,1.14633778]
[1771653239383,4.27969937,1963.6,1962.9,1.14633778]
[1771653239582,0.01836149,1963.3,1962.9,1.14633778]
[1771653240178,0.02003469,1963.4,1962.9,1.14633778]
[1771653240783,0.00456333,1963.6,1962.9,1.14633778]
[1771653240983,0.02376868,1963.6,1962.9,1.14633778]
[1771653245483,0.02376868,1963.6,1962.9,5.41787155]
[1771653245676,0.02376868,1963.6,1963.0,1.14179584]
[1771653246884,0.036261,1963.5,1962.9,0.00454194]
[1771653247087,0.036261,1963.5,1962.9,1.14633778]
[1771653247887,0.036261,1963.5,1962.9,0.00454194]
[1771653248087,0.036261,1963.5,1962.9,1.13715542]
[1771653253788,0.05428345,1963.4,1962.9,1.13715542]
[1771653277910,1.73399331,1963.3,1962.9,1.13715542]
[1771653281811,1.66191399,1963.3,1962.9,1.13715542]
[1771653283213,1.73828779,1963.3,1962.9,1.13715542]
[1771653283512,1.66191399,1963.3,1962.9,1.13715542]
[1771653290218,1.74633364,1963.3,1962.9,1.13715542]
[1771653291112,0.08529187,1963.2,1962.9,1.13715542]
[1771653296021,1.75291217,1963.3,1962.9,1.13715542]
[1771653298522,4.27825641,1963.4,1962.6,1.13539702]
[1771653298523,1.66191399,1963.1,1962.6,1.13539702]
[1771653299622,1.66191399,1963.1,1962.6,1.14062287]
[1771653300423,1.7540174,1963.1,1962.6,1.14062287]
[1771653300618,1.66191399,1962.9,1962.6,1.14062287]
[1771653301723,1.75862096,1963.1,1962.6,1.14062287]
[1771653302427,1.66191399,1963.1,1962.6,1.14062287]
[1771653303024,1.75588457,1963.1,1962.6,1.14062287]
[1771653303631,1.66191399,1963.1,1962.6,1.14062287]
[1771653304127,5.9401704,1963.3,1962.6,1.14062287]
[1771653308431,6.03692364,1963.3,1962.6,1.14062287]
[1771653312637,0.10923152,1963.2,1962.6,1.14062287]
[1771653312835,1.77176508,1962.9,1962.6,1.14062287]
[1771653313735,1.66191399,1963.1,1962.6,1.14062287]
[1771653313935,0.11052442,1963.0,1962.6,1.14062287]
[1771653318037,0.65686615,1962.7,1962.3,1.08575542]
[1771653318337,1.66191399,1962.6,1962.3,1.08575542]
[1771653319037,1.66191399,1962.6,1962.1,4.27624066]
[1771653319038,1.07940791,1962.5,1962.1,1.08575542]
[1771653319238,2.7413219,1962.6,1962.1,1.08575542]
[1771653319737,1.07940791,1962.6,1962.1,1.08575542]
[1771653320038,1.07940791,1962.6,1962.1,1.09199516]
[1771653325539,2.7413219,1962.6,1962.1,1.09199516]
[1771653325839,1.07940791,1962.5,1962.1,1.09199516]
[1771653350053,5.34528389,1962.5,1962.1,1.09199516]
[1771653351456,4.26587598,1962.5,1962.1,1.09199516]
[1771653351759,4.26587598,1962.6,1962.1,1.09199516]
[1771653352360,5.40862938,1962.6,1962.1,1.09199516]
[1771653352557,4.26587598,1962.6,1962.1,1.09199516]
[1771653352755,4.26587598,1962.7,1962.1,1.09199516]
[1771653356161,5.40862938,1962.8,1962.1,1.09199516]
[1771653363165,1.1427534,1962.7,1962.1,1.09199516]
[1771653372274,1.14647053,1962.6,1962.1,1.09199516]
[1771653372874,1.14647053,1962.6,1962.1,0.00623974]